bitfinex/quotes_BTCUSD_20241211
["timestamp","ask_amount","ask_price","bid_price","bid_amount"]
[1733927404756,0.0002116,98780.0,98779.0,0.45134113]
[1733927405382,0.0012116,98780.0,98779.0,0.45934113]
[1733927405991,0.0002116,98780.0,98779.0,0.44734113]
[1733927406196,0.0022116,98780.0,98779.0,0.46534113]
[1733927406398,0.0022116,98780.0,98779.0,0.45634113]
[1733927406819,0.0032116,98780.0,98779.0,0.46534113]
[1733927407031,0.0012116,98780.0,98779.0,0.45634113]
[1733927407238,0.0012116,98780.0,98779.0,0.46534113]
[1733927407444,0.0012116,98780.0,98779.0,0.018]
[1733927407445,0.0022116,98780.0,98779.0,0.018]
[1733927407866,0.2026816,98780.0,98774.0,0.00569803]
[1733927408079,0.2046816,98780.0,98779.0,0.018]
[1733927408293,0.24539596,98780.0,98779.0,0.018]
[1733927408505,0.2036816,98780.0,98779.0,0.009]
[1733927408719,0.2036816,98780.0,98779.0,0.013]
[1733927408720,0.33200684,98780.0,98779.0,0.013]
[1733927408930,0.52780684,98780.0,98779.0,0.013]
[1733927409337,0.52780684,98780.0,98774.0,0.00569803]
[1733927409338,0.20248,98775.0,98774.0,0.00569803]
[1733927409552,0.33080524,98775.0,98774.0,0.00569803]
[1733927410187,0.33080524,98775.0,98743.0,0.2799436]
[1733927410188,1.15697497,98775.0,98743.0,0.0009986]
[1733927410410,0.375509,98761.0,98743.0,0.0009986]
[1733927410632,0.375509,98761.0,98740.0,8.58e-05]
[1733927410633,0.48083424,98761.0,98740.0,8.58e-05]
[1733927411289,0.225509,98761.0,98740.0,8.58e-05]
[1733927412324,0.202509,98761.0,98740.0,8.58e-05]
[1733927412543,0.204509,98761.0,98760.0,0.00100026]
[1733927412954,0.204509,98761.0,98760.0,2.6e-07]
[1733927413162,0.208509,98761.0,98760.0,2.6e-07]
[1733927413571,0.204509,98761.0,98760.0,2.6e-07]
[1733927413790,0.205509,98761.0,98760.0,2.6e-07]
[1733927413994,0.203509,98761.0,98760.0,2.6e-07]
[1733927414173,0.204509,98761.0,98760.0,2.6e-07]
[1733927414820,0.203509,98761.0,98760.0,2.6e-07]
[1733927415021,0.203509,98761.0,98760.0,0.00100026]
[1733927415889,0.33183424,98761.0,98760.0,0.00100026]
[1733927416317,0.48183424,98761.0,98760.0,0.00100026]
[1733927416730,2.66235142,98761.0,98760.0,2.6e-07]
[1733927416939,1.2611706,98761.0,98760.0,2.6e-07]
[1733927417151,1.07866468,98761.0,98760.0,2.6e-07]
[1733927417357,0.3,98752.0,98740.0,8.58e-05]
[1733927417591,1.16958924,98752.0,98740.0,8.58e-05]
[1733927417865,1.37589424,98752.0,98740.0,8.58e-05]
[1733927418290,1.22589424,98752.0,98740.0,8.58e-05]
[1733927418493,1.48599753,98752.0,98740.0,8.58e-05]
[1733927419098,1.57167973,98752.0,98740.0,8.58e-05]
[1733927419326,1.33099753,98752.0,98740.0,8.58e-05]
[1733927419524,1.48999753,98752.0,98751.0,0.0014]
[1733927419657,0.75676624,98752.0,98751.0,0.0014]
[1733927420264,0.77710694,98752.0,98751.0,0.0014]
[1733927420490,0.20255,98741.0,98740.0,8.58e-05]
[1733927420668,0.33087524,98741.0,98740.0,8.58e-05]
[1733927420867,0.48087524,98741.0,98740.0,8.58e-05]
[1733927421803,0.37855,98741.0,98740.0,0.00063774]
[1733927422480,0.35255,98741.0,98740.0,0.00063774]
[1733927422635,0.007,98741.0,98740.0,0.00063774]
[1733927422834,0.01,98741.0,98740.0,0.01426127]
[1733927423042,0.01,98741.0,98740.0,0.02607597]
[1733927423043,0.003,98741.0,98740.0,0.02607597]
[1733927423225,0.009,98741.0,98740.0,0.01426127]
[1733927423696,0.003,98741.0,98740.0,0.02606996]
[1733927423947,0.20955,98741.0,98740.0,0.02606996]
[1733927424352,0.35455,98741.0,98740.0,0.01426127]
[1733927424558,0.45987524,98741.0,98740.0,0.00063774]
[1733927424734,0.48287524,98741.0,98740.0,0.00063774]
[1733927424876,0.48087524,98741.0,98740.0,0.00063774]
[1733927425086,0.48087524,98741.0,98740.0,0.00263774]
[1733927425333,0.57225666,98741.0,98740.0,0.00263774]
[1733927425535,0.72225666,98741.0,98740.0,0.00063774]
[1733927425914,0.72425666,98741.0,98740.0,0.00063774]
[1733927426109,0.72425666,98741.0,98740.0,0.00363774]
[1733927426511,0.72425666,98741.0,98740.0,0.00063774]
[1733927426718,0.75170501,98741.0,98740.0,0.00163774]
[1733927427693,0.66032359,98741.0,98740.0,0.00163774]
[1733927428833,0.66032359,98741.0,98730.0,8.57e-05]
[1733927428834,0.525566,98733.0,98730.0,8.57e-05]
[1733927429196,0.63089124,98733.0,98730.0,8.57e-05]
[1733927430511,0.63089124,98733.0,98720.0,5.8e-07]
[1733927430512,0.473,98721.0,98720.0,5.8e-07]
[1733927430715,0.473,98721.0,98691.0,0.0004]
[1733927430716,0.473,98711.0,98691.0,0.0004]
[1733927430920,0.57832524,98711.0,98710.0,0.00025111]
[1733927431353,0.27832524,98711.0,98710.0,0.00025111]
[1733927431561,0.173,98711.0,98710.0,0.00025111]
[1733927431967,0.177,98711.0,98710.0,0.00025111]
[1733927432391,0.15,98711.0,98710.0,0.00025111]
[1733927432598,0.202606,98714.0,98710.0,0.00025111]
[1733927432788,0.004,98711.0,98710.0,0.00025111]
[1733927433017,0.005,98711.0,98710.0,0.00025111]
[1733927433199,0.004,98711.0,98710.0,0.01170413]
[1733927433627,0.006,98711.0,98710.0,0.01170413]
[1733927433781,0.004,98711.0,98710.0,0.01170413]
[1733927434189,0.202609,98712.0,98710.0,0.01170413]
[1733927434389,0.15,98713.0,98710.0,0.01170413]
[1733927434721,0.023,98733.0,98710.0,0.01170413]
[1733927434929,0.173,98739.0,98710.0,0.01170413]
[1733927434930,0.15,98724.0,98710.0,0.01170413]
[1733927435341,0.15,98722.0,98711.0,0.202611]
[1733927435777,0.20256,98737.0,98717.0,0.202599]
[1733927435989,0.202562,98735.0,98721.0,0.20259]
[1733927436201,0.202568,98732.0,98718.0,0.0114296]
[1733927436443,0.202568,98732.0,98722.0,0.01141788]
[1733927436645,0.202568,98732.0,98719.0,0.202594]
[1733927436820,0.202568,98732.0,98723.0,0.01141496]
[1733927437050,0.202568,98732.0,98719.0,0.202594]
[1733927437264,0.001,98737.0,98712.0,0.2035959]
[1733927437265,0.15,98731.0,98724.0,0.01141203]
[1733927437503,0.202599,98717.0,98713.0,0.01205368]
[1733927437740,0.202599,98717.0,98712.0,0.0009869]
[1733927437952,0.11863048,98730.0,98710.0,0.00025111]
[1733927437953,0.202607,98713.0,98710.0,0.00025111]
[1733927438369,0.352611,98711.0,98710.0,0.00025111]
[1733927439012,0.375611,98711.0,98710.0,0.00025111]
[1733927439221,0.48093624,98711.0,98710.0,0.00025111]
[1733927439444,0.49071728,98711.0,98710.0,0.00125111]
[1733927439666,0.49071728,98711.0,98710.0,0.00025111]
[1733927440092,0.49071728,98711.0,98710.0,0.00125111]
[1733927440323,0.59582057,98711.0,98710.0,0.00125111]
[1733927440528,0.59582057,98711.0,98710.0,0.00425111]
[1733927440739,0.48093624,98711.0,98710.0,0.00425111]
[1733927440940,0.375611,98711.0,98710.0,0.00425111]
[1733927441161,0.375611,98711.0,98710.0,0.00125111]
[1733927441376,0.63393624,98711.0,98710.0,0.00025111]
[1733927441595,0.69030008,98711.0,98710.0,0.00025111]
[1733927441801,0.69630008,98711.0,98710.0,0.00025111]
[1733927442019,0.68730008,98711.0,98710.0,0.00025111]
[1733927442440,0.69130008,98711.0,98710.0,0.00025111]
[1733927442897,0.68830008,98711.0,98710.0,0.00025111]
[1733927443102,0.69730008,98711.0,98710.0,0.00025111]
[1733927443715,0.69630008,98711.0,98710.0,0.00025111]
[1733927443925,0.54930008,98711.0,98710.0,0.00025111]
[1733927444140,0.64293624,98711.0,98710.0,0.00025111]
[1733927447659,0.46993624,98711.0,98710.0,0.00025111]
[1733927448624,0.31993624,98711.0,98710.0,0.00025111]
[1733927449053,0.205611,98711.0,98710.0,0.00025111]
[1733927449681,0.0001718,98720.0,98710.0,0.00025111]
[1733927449682,0.0001718,98720.0,98710.0,0.01170413]
[1733927449902,0.0001718,98720.0,98710.0,0.00025111]
[1733927449903,0.006,98711.0,98710.0,0.00025111]
[1733927450118,0.006,98711.0,98710.0,0.35408935]
[1733927450335,0.006,98711.0,98710.0,0.26840476]
[1733927450544,0.005,98711.0,98710.0,0.26840476]
[1733927450755,0.005,98711.0,98710.0,0.37373]
[1733927451398,0.005,98711.0,98710.0,0.171117]
[1733927451604,0.0001718,98720.0,98715.0,0.202601]
[1733927451810,0.0001718,98720.0,98716.0,0.42484265]
[1733927452015,0.0001718,98720.0,98716.0,0.01964065]
[1733927452222,0.0001718,98720.0,98710.0,0.04615111]
[1733927452223,0.2027648,98720.0,98717.0,0.00755135]
[1733927452423,0.0001718,98720.0,98718.0,0.00755135]
[1733927452625,0.0001718,98720.0,98711.0,0.21016217]
[1733927452830,0.0001718,98720.0,98712.0,0.00755099]
[1733927453006,0.2027658,98720.0,98716.0,0.003]
[1733927453244,0.2037658,98720.0,98717.0,0.007552]
[1733927453449,0.2037658,98720.0,98718.0,0.007552]
[1733927453625,0.0011718,98720.0,98717.0,0.003]
[1733927453852,0.0011718,98720.0,98718.0,0.00755387]
[1733927453967,0.0011718,98720.0,98719.0,0.21014887]
[1733927454174,0.0011718,98720.0,98719.0,0.22223578]
[1733927454905,0.0001718,98720.0,98719.0,0.22223578]
[1733927455329,0.0001718,98720.0,98719.0,0.22423578]
[1733927455619,0.0001718,98720.0,98719.0,0.22223578]
[1733927456122,0.0011718,98720.0,98719.0,0.22723578]
[1733927456272,0.0011718,98720.0,98719.0,0.23866245]
[1733927456476,0.0011718,98720.0,98719.0,0.23566245]
[1733927456909,0.0021718,98720.0,98719.0,0.24066245]
[1733927457754,0.0021718,98720.0,98719.0,0.47178769]
[1733927458813,0.0021718,98720.0,98719.0,0.46478769]
[1733927458814,0.0001718,98720.0,98719.0,0.46478769]
[1733927459022,0.0011718,98720.0,98719.0,0.46678769]
[1733927459232,0.0021718,98720.0,98719.0,0.47578769]
[1733927459445,0.0011718,98720.0,98719.0,0.45414691]
[1733927459651,0.0021718,98720.0,98719.0,0.46677897]
[1733927459858,0.0011718,98720.0,98719.0,0.46677897]
[1733927460076,0.0021718,98720.0,98719.0,0.47477897]
[1733927460485,0.0011718,98720.0,98719.0,0.46677897]
[1733927460731,0.0021718,98720.0,98719.0,0.47377897]
[1733927460946,0.0021718,98720.0,98719.0,0.16585873]
[1733927461158,0.0021718,98720.0,98719.0,0.15377746]
[1733927461366,0.0021718,98720.0,98719.0,0.15177746]
[1733927461367,0.0011718,98720.0,98719.0,0.15177746]
[1733927461843,0.0021718,98720.0,98719.0,0.16077746]
[1733927462046,0.0021718,98720.0,98719.0,0.02742667]
[1733927462277,0.1521718,98720.0,98719.0,0.02742667]
[1733927462493,0.1751718,98720.0,98719.0,0.016]
[1733927462707,0.28049704,98720.0,98719.0,0.009]
[1733927462916,0.28049704,98720.0,98710.0,0.00025111]
[1733927462917,0.15,98718.0,98710.0,0.00025111]
[1733927463132,0.375611,98711.0,98710.0,0.00025111]
[1733927463371,0.48093624,98711.0,98710.0,0.00025111]
[1733927463798,0.58454966,98711.0,98710.0,0.00025111]
[1733927464218,0.58434892,98711.0,98710.0,0.00025111]
[1733927464423,0.4807355,98711.0,98710.0,0.00025111]
[1733927465060,0.4857355,98711.0,98710.0,0.00125111]
[1733927466109,0.4867355,98711.0,98710.0,0.00125111]
[1733927466736,0.35841026,98711.0,98710.0,0.00125111]
[1733927468495,0.38141026,98711.0,98710.0,0.00125111]
[1733927469333,0.35841026,98711.0,98710.0,0.00125111]
[1733927470614,0.56309633,98711.0,98710.0,0.00125111]
[1733927471707,0.4867355,98711.0,98710.0,0.00125111]
[1733927474194,0.6367355,98711.0,98710.0,0.00125111]
[1733927475085,0.72732884,98711.0,98710.0,0.00125111]
[1733927475341,0.77258439,98711.0,98710.0,0.00125111]
[1733927475569,0.6357355,98711.0,98710.0,0.00125111]
[1733927475774,0.76133702,98711.0,98710.0,0.00125111]
[1733927476018,0.75180269,98711.0,98710.0,0.00125111]
[1733927476221,0.4907355,98711.0,98710.0,0.00125111]
[1733927476424,0.58129544,98711.0,98710.0,0.00125111]
[1733927476846,0.58129544,98711.0,98710.0,0.00025111]
[1733927476847,0.4857355,98711.0,98710.0,0.00025111]
[1733927477058,0.4717355,98711.0,98710.0,0.00025111]
[1733927477292,0.3217355,98711.0,98710.0,0.00025111]
[1733927477520,0.21141026,98711.0,98710.0,0.00025111]
[1733927477737,0.22041026,98711.0,98710.0,0.00025111]
[1733927477960,0.21141026,98711.0,98710.0,0.00025111]
[1733927478167,0.21341026,98711.0,98710.0,0.00025111]
[1733927478372,0.3167355,98711.0,98710.0,0.00025111]
[1733927478581,0.3077355,98711.0,98710.0,0.00125111]
[1733927478782,0.3307355,98711.0,98710.0,0.00125111]
[1733927478986,0.4807355,98711.0,98710.0,0.00125111]
[1733927479228,0.4807355,98711.0,98710.0,0.00025111]
[1733927479446,0.4807355,98711.0,98710.0,0.00225111]
[1733927479884,0.4807355,98711.0,98710.0,0.00325111]
[1733927480101,0.4807355,98711.0,98710.0,0.00225111]
[1733927480524,0.4877355,98711.0,98710.0,0.00225111]
[1733927480732,0.4807355,98711.0,98710.0,0.00225111]
[1733927480955,0.20241026,98711.0,98710.0,0.00225111]
[1733927481229,0.005,98711.0,98710.0,0.00025111]
[1733927481439,0.003,98711.0,98710.0,0.00025111]
[1733927481651,0.008,98711.0,98710.0,0.00025111]
[1733927482064,0.005,98711.0,98710.0,0.00025111]
[1733927482269,0.155,98711.0,98710.0,0.00225111]
[1733927482669,0.005,98711.0,98710.0,0.04975111]
[1733927482899,0.15,98719.0,98710.0,0.04975111]
[1733927483134,0.202597,98718.0,98710.0,0.06120413]
[1733927483349,0.15,98717.0,98710.0,0.05075111]
[1733927483554,0.15,98715.0,98710.0,0.05075111]
[1733927483788,0.15,98715.0,98711.0,0.01145009]
[1733927484002,0.0001718,98720.0,98710.0,0.04975111]
[1733927484213,0.0001718,98720.0,98718.0,0.0826]
[1733927484436,0.0001718,98720.0,98719.0,0.20360784]
[1733927484646,0.0001718,98720.0,98719.0,0.22259443]
[1733927484859,0.0001718,98720.0,98719.0,0.40930683]
[1733927485758,0.0001718,98720.0,98719.0,0.41230683]
[1733927485970,0.0001718,98720.0,98719.0,0.36477137]
[1733927486181,0.0001718,98720.0,98719.0,0.47009661]
[1733927487054,7.036e-05,98750.0,98738.0,0.202554]
[1733927487270,0.010008,98740.0,98739.0,0.0774]
[1733927487480,7.036e-05,98750.0,98739.0,0.0774]
[1733927487717,7.036e-05,98750.0,98747.0,0.202537]
[1733927487931,7.036e-05,98750.0,98749.0,0.202533]
[1733927488143,7.036e-05,98750.0,98749.0,0.2110879]
[1733927488350,7.036e-05,98750.0,98749.0,0.22162694]
[1733927488998,7.036e-05,98750.0,98749.0,0.32695218]
[1733927489215,7.036e-05,98750.0,98749.0,0.4890058]
[1733927489620,0.00307036,98750.0,98749.0,0.4890058]
[1733927489823,7.036e-05,98750.0,98749.0,0.4890058]
[1733927490252,0.00107036,98750.0,98749.0,0.4980058]
[1733927490459,7.036e-05,98750.0,98749.0,0.48897869]
[1733927490701,0.00107036,98750.0,98749.0,0.49497869]
[1733927490917,0.00207036,98750.0,98749.0,0.50397869]
[1733927491120,0.00107036,98750.0,98749.0,0.48897869]
[1733927491341,0.00107036,98750.0,98749.0,0.4769363]
[1733927491595,0.0001716,98770.0,98769.0,0.328592]
[1733927491812,0.0001716,98770.0,98769.0,0.74144373]
[1733927491813,0.00072286,98770.0,98769.0,0.74144373]
[1733927492030,0.0002116,98780.0,98779.0,0.502472]
[1733927492249,0.0002116,98780.0,98779.0,0.69382373]
[1733927492455,4e-05,98800.0,98799.0,0.202431]
[1733927492664,4e-05,98800.0,98799.0,0.38625624]
[1733927492893,4e-05,98800.0,98782.0,0.15]
[1733927493102,0.004093,98800.0,98799.0,0.01140534]
[1733927493540,0.004093,98800.0,98789.0,0.20245]
[1733927493748,0.004093,98800.0,98783.0,0.2306]
[1733927493749,0.004093,98800.0,98799.0,0.01140534]
[1733927493957,0.004093,98800.0,98783.0,0.2306]
[1733927494186,0.004093,98800.0,98799.0,0.01140534]
[1733927494387,0.005093,98800.0,98790.0,0.202448]
[1733927494815,0.00104,98800.0,98795.0,0.404877]
[1733927495228,0.00104,98800.0,98797.0,0.202435]
[1733927495434,4e-05,98800.0,98797.0,0.202435]
[1733927495645,4e-05,98800.0,98798.0,0.01140826]
[1733927496053,4e-05,98800.0,98799.0,0.202431]
[1733927496472,4e-05,98800.0,98799.0,0.31916158]
[1733927497340,4e-05,98800.0,98799.0,0.39616158]
[1733927497554,4e-05,98800.0,98799.0,0.44366158]
[1733927497765,4e-05,98800.0,98799.0,0.74366158]
[1733927497982,0.0001718,98810.0,98809.0,0.57941]
[1733927498193,0.0001718,98810.0,98809.0,0.69219918]
[1733927498425,0.0001716,98820.0,98809.0,0.75010521]
[1733927498631,0.0001716,98820.0,98819.0,0.58359]
[1733927498811,0.0001716,98820.0,98819.0,0.68891524]
[1733927499042,0.0001716,98820.0,98819.0,0.70069205]
[1733927499189,0.00033698,98820.0,98819.0,0.70069205]
[1733927499805,0.00033698,98820.0,98819.0,0.70969205]
[1733927500622,0.00133698,98820.0,98819.0,0.70969205]
[1733927500819,0.00133698,98820.0,98819.0,0.71958455]
[1733927501022,0.0001716,98850.0,98829.0,0.502369]
[1733927501250,0.0001716,98850.0,98829.0,0.68635962]
[1733927501422,0.0001716,98850.0,98829.0,0.69810721]
[1733927501832,0.202344,98842.0,98829.0,0.09041297]
[1733927502035,0.0001716,98850.0,98829.0,0.09041297]
[1733927502036,0.202335,98846.0,98829.0,0.09041297]
[1733927502248,0.202353,98837.0,98829.0,0.09041297]
[1733927502447,0.202353,98837.0,98829.0,0.01191297]
[1733927502672,0.404725,98833.0,98829.0,0.01191297]
[1733927503038,0.404725,98833.0,98829.0,0.00016538]
[1733927503433,0.0011718,98830.0,98829.0,0.00916538]
[1733927503684,0.0011718,98830.0,98829.0,0.00416538]
[1733927504233,0.12949704,98830.0,98829.0,0.00016538]
[1733927504647,0.20315454,98830.0,98829.0,3.8e-07]
[1733927504852,0.20315454,98830.0,98766.0,0.15]
[1733927504853,0.202463,98784.0,98771.0,0.0773]
[1733927505064,0.202463,98784.0,98740.0,0.17736448]
[1733927505065,0.404926,98784.0,98755.0,0.0773]
[1733927505677,0.404926,98784.0,98754.0,0.0451]
[1733927505678,0.023,98781.0,98754.0,0.0451]
[1733927505885,0.12832524,98781.0,98755.0,0.0009829]
[1733927506320,1.64139206,98781.0,98780.0,8e-07]
[1733927506698,0.023,98771.0,98726.0,0.00101267]
[1733927506958,0.023,98771.0,98740.0,0.00153306]
[1733927506959,0.023,98769.0,98740.0,0.00153306]
[1733927507193,0.202543,98745.0,98740.0,0.00055126]
[1733927507606,0.202535,98749.0,98740.0,0.00055126]
[1733927507739,0.202527,98753.0,98740.0,0.00055126]
[1733927508128,0.202502,98765.0,98741.0,0.10532524]
[1733927508339,0.202502,98764.0,98742.0,0.00101254]
[1733927508563,0.202502,98764.0,98740.0,0.00055126]
[1733927508564,0.202502,98764.0,98743.0,0.10633778]
[1733927508771,0.202502,98764.0,98743.0,0.10532524]
[1733927509175,0.001,98753.0,98743.0,0.10532524]
[1733927509382,0.202502,98764.0,98743.0,0.10532524]
[1733927509790,0.003,98764.0,98743.0,0.10532524]
[1733927510002,0.003,98764.0,98743.0,0.10633778]
[1733927510630,0.003,98764.0,98741.0,0.0009971]
[1733927510631,0.17736448,98760.0,98741.0,0.0009971]
[1733927510838,0.004,98764.0,98741.0,0.0009971]
[1733927510839,0.17736448,98751.0,98741.0,0.0009971]
[1733927511044,0.17736448,98751.0,98740.0,0.00055126]
[1733927511045,0.023,98743.0,98740.0,0.00055126]
[1733927511259,0.22555,98741.0,98740.0,0.00055126]
[1733927511460,0.33087524,98741.0,98740.0,0.00055126]
[1733927513046,0.33787524,98741.0,98740.0,0.00155126]
[1733927513271,0.007,98741.0,98740.0,0.00155126]
[1733927513710,0.03,98741.0,98740.0,0.00155126]
[1733927514341,0.13932524,98741.0,98740.0,0.00155126]
[1733927514779,0.13932524,98741.0,98740.0,2.6e-07]
[1733927514780,0.28532524,98741.0,98740.0,2.6e-07]
[1733927515200,0.405214,98713.0,98710.0,8.56e-05]
[1733927515407,0.405214,98713.0,98710.0,0.00025089]
[1733927516638,0.405214,98713.0,98710.0,0.00125089]
[1733927517057,0.202607,98713.0,98710.0,0.00125089]
[1733927517258,0.023,98718.0,98710.0,0.00125089]
[1733927517679,0.405206,98715.0,98710.0,0.00225089]
[1733927518090,0.405206,98715.0,98710.0,0.00125089]
[1733927518287,0.405206,98715.0,98710.0,0.00025089]
[1733927519713,0.202599,98717.0,98710.0,0.00025089]
[1733927519714,0.428214,98713.0,98710.0,0.00025089]
[1733927519908,0.53353924,98713.0,98710.0,0.00125089]
[1733927520720,0.53353924,98713.0,98710.0,0.00025089]
[1733927521231,0.53353924,98713.0,98710.0,0.00125089]
[1733927521485,0.202611,98711.0,98710.0,0.00125089]
[1733927521701,0.40455046,98711.0,98710.0,0.00125089]
[1733927521954,0.40455046,98711.0,98710.0,8.9e-07]
[1733927522161,0.225632,98701.0,98699.0,0.05837719]
[1733927522364,0.225632,98701.0,98700.0,0.00025121]
[1733927522365,0.33095724,98701.0,98700.0,0.00025121]
[1733927522573,0.64788724,98701.0,98700.0,0.00025121]
[1733927522784,0.62271724,98701.0,98700.0,0.00025121]
[1733927522989,0.53881724,98701.0,98700.0,0.00025121]
[1733927523827,0.33095724,98701.0,98700.0,0.00025121]
[1733927524262,0.33595724,98701.0,98700.0,0.00025121]
[1733927524683,0.207632,98701.0,98700.0,0.00025121]
[1733927524890,0.005,98701.0,98700.0,0.00025121]
[1733927525093,0.01,98701.0,98700.0,0.00125121]
[1733927525474,0.005,98701.0,98700.0,0.00125121]
[1733927525816,0.011,98701.0,98700.0,0.00125121]
[1733927526146,0.005,98701.0,98700.0,0.00125121]
[1733927526357,0.27340339,98720.0,98700.0,0.00025121]
[1733927526568,0.001,98701.0,98700.0,0.00025121]
[1733927526780,0.003,98701.0,98700.0,0.00025121]
[1733927527223,0.001,98701.0,98700.0,0.00025121]
[1733927527484,0.001,98701.0,98700.0,0.10658954]
[1733927528103,0.202595,98719.0,98706.0,0.202621]
[1733927528314,0.0001716,98720.0,98709.0,0.202614]
[1733927528523,0.202595,98719.0,98707.0,0.202619]
[1733927528725,0.202595,98719.0,98703.0,0.202628]
[1733927528930,0.202595,98719.0,98707.0,0.202619]
[1733927529993,0.0001716,98720.0,98711.0,0.202611]
[1733927530405,0.0001716,98720.0,98707.0,0.10632524]
[1733927530608,0.0001716,98720.0,98707.0,0.001]
[1733927531050,0.0001716,98720.0,98700.0,0.20388011]
[1733927531259,0.0001716,98720.0,98711.0,0.002]
[1733927531669,0.0001716,98720.0,98712.0,0.01012283]
[1733927531886,0.15,98714.0,98712.0,0.01012283]
[1733927532083,0.15,98714.0,98700.0,0.00124711]
[1733927532084,0.202623,98706.0,98700.0,0.00124711]
[1733927532339,0.202627,98704.0,98700.0,0.00124711]
[1733927532557,0.202627,98704.0,98701.0,0.01015505]
[1733927532766,0.20262,98707.0,98700.0,0.00025121]
[1733927532945,0.20262,98707.0,98702.0,0.01015212]
[1733927533181,0.202628,98703.0,98700.0,0.00025121]
[1733927533597,0.405256,98703.0,98700.0,0.00025121]
[1733927534248,0.352632,98701.0,98700.0,0.00025121]
[1733927534455,0.352632,98701.0,98700.0,0.00525121]
[1733927534678,0.48095724,98701.0,98700.0,0.00225121]
[1733927535327,0.48095724,98701.0,98700.0,0.00025121]
[1733927535565,0.375632,98701.0,98700.0,0.00025121]
[1733927535770,0.377632,98701.0,98700.0,0.00025121]
[1733927535999,0.375632,98701.0,98700.0,0.00025121]
[1733927536977,0.379632,98701.0,98700.0,0.00025121]
[1733927537391,0.383632,98701.0,98700.0,0.00125121]
[1733927537604,0.55984524,98701.0,98700.0,0.00025121]
[1733927538052,0.70984524,98701.0,98700.0,2.1e-07]
[1733927538388,0.70984524,98701.0,98684.0,0.0009913]
[1733927538389,0.375665,98685.0,98684.0,0.0009913]
[1733927538571,0.48099024,98685.0,98684.0,0.0009913]
[1733927538836,0.202669,98683.0,98680.0,8.58e-05]
[1733927539049,0.375673,98681.0,98680.0,8.58e-05]
[1733927539254,0.48099824,98681.0,98680.0,8.58e-05]
[1733927540896,0.48299824,98681.0,98680.0,8.58e-05]
[1733927541478,0.48999824,98681.0,98680.0,0.0010858]
[1733927541886,0.49003824,98681.0,98680.0,0.0010858]
[1733927542093,0.361713,98681.0,98680.0,0.0010858]
[1733927543364,0.00704,98681.0,98680.0,0.0010858]
[1733927543580,0.00704,98681.0,98680.0,0.01886027]
[1733927544319,0.30803824,98681.0,98680.0,0.01786027]
[1733927544496,0.31103824,98681.0,98680.0,0.01230237]
[1733927544729,0.31103824,98681.0,98680.0,0.0020858]
[1733927544933,0.48403824,98681.0,98680.0,0.0020858]
[1733927545088,0.48403824,98681.0,98680.0,0.0060858]
[1733927545286,0.48403824,98681.0,98680.0,0.0020858]
[1733927545287,0.57219317,98681.0,98680.0,0.0020858]
[1733927545688,0.57519317,98681.0,98680.0,0.0020858]
[1733927546105,0.57519317,98681.0,98680.0,8.58e-05]
[1733927546106,0.57925217,98681.0,98680.0,8.58e-05]
[1733927546280,0.57925217,98681.0,98680.0,0.0030858]
[1733927546476,0.57519317,98681.0,98680.0,0.0030858]
[1733927546801,0.48809724,98681.0,98680.0,8.58e-05]
[1733927547009,0.49009724,98681.0,98680.0,8.58e-05]
[1733927547178,0.49303824,98681.0,98680.0,0.0010858]
[1733927551072,0.85594924,98681.0,98680.0,0.0010858]
[1733927551259,0.92996553,98681.0,98680.0,0.0010858]
[1733927551700,1.07996553,98681.0,98680.0,8e-07]
[1733927551902,0.7795768,98681.0,98680.0,8e-07]
[1733927552538,0.7775768,98681.0,98680.0,8e-07]
[1733927553068,0.7775768,98681.0,98660.0,9.6e-07]
[1733927553069,0.15,98661.0,98660.0,9.6e-07]
[1733927553275,0.50589584,98661.0,98660.0,9.6e-07]
[1733927553458,0.61981163,98661.0,98660.0,9.6e-07]
[1733927553880,0.573,98652.0,98631.0,0.0004]
[1733927554103,0.473,98632.0,98631.0,6.3e-07]
[1733927554317,0.473,98632.0,98610.0,8.58e-05]
[1733927554318,0.173,98623.0,98610.0,8.58e-05]
[1733927554527,0.375815,98612.0,98610.0,8.58e-05]
[1733927554734,0.48114024,98612.0,98611.0,0.00095225]
[1733927556004,0.73114024,98612.0,98611.0,0.00095225]
[1733927556842,0.73614024,98612.0,98611.0,0.00095225]
[1733927557046,0.73114024,98612.0,98611.0,0.00095225]
[1733927557256,0.83824353,98612.0,98611.0,0.00095225]
[1733927557458,0.84524353,98612.0,98611.0,0.00095225]
[1733927557661,0.83824353,98612.0,98611.0,0.00095225]
[1733927558067,0.84724353,98612.0,98611.0,0.00095225]
[1733927558273,0.83824353,98612.0,98611.0,0.00095225]
[1733927558484,0.83624353,98612.0,98611.0,0.00095225]
[1733927558696,0.84824353,98612.0,98611.0,0.00095225]
[1733927558903,0.48016816,98612.0,98611.0,0.00095225]
[1733927559110,0.47716816,98612.0,98611.0,0.00095225]
[1733927559333,0.46714024,98612.0,98611.0,0.00095225]
[1733927559554,0.47014024,98612.0,98611.0,0.00095225]
[1733927559966,0.55343813,98612.0,98611.0,0.00095225]
[1733927560398,0.57643813,98612.0,98611.0,0.00095225]
[1733927561141,0.49314024,98612.0,98611.0,0.00095225]
[1733927564260,0.387815,98612.0,98611.0,0.00095225]
[1733927564906,0.378815,98612.0,98611.0,0.00095225]
[1733927565112,0.379815,98612.0,98611.0,0.00095225]
[1733927565320,0.380815,98612.0,98611.0,0.00095225]
[1733927565530,0.459458,98612.0,98611.0,0.00095225]
[1733927565938,0.458458,98612.0,98611.0,0.00095225]
[1733927566152,0.027,98612.0,98611.0,0.00095225]
[1733927566550,0.206815,98612.0,98611.0,0.00095225]
[1733927566783,0.202771,98634.0,98620.0,0.202797]
[1733927566982,0.202713,98662.0,98620.0,0.202797]
[1733927566983,0.27430693,98640.0,98620.0,0.202797]
[1733927567187,0.202745,98646.0,98621.0,0.28060999]
[1733927567397,0.1,98664.0,98621.0,0.28060999]
[1733927567398,0.27430693,98670.0,98622.0,0.10532524]
[1733927567603,0.10532524,98669.0,98639.0,0.202758]
[1733927567810,0.10532524,98669.0,98644.0,0.0454]
[1733927568014,0.10532524,98669.0,98645.0,0.0768]
[1733927568250,0.15,98677.0,98645.0,0.0768]
[1733927568251,0.202675,98680.0,98665.0,0.202705]
[1733927568455,4e-05,98681.0,98646.0,0.10633897]
[1733927568660,4e-05,98681.0,98666.0,0.01043184]
[1733927568901,4e-05,98681.0,98657.0,0.00101347]
[1733927569136,4e-05,98681.0,98674.0,0.202686]
[1733927569343,4e-05,98681.0,98658.0,0.10633863]
[1733927569344,4e-05,98681.0,98673.0,0.405375]
[1733927569549,4e-05,98681.0,98658.0,0.10532524]